[Event "Late-Titled-Tuesday-Blitz-February-20-2024"]
[Site "Chess.com"]
[Date "2024.02.20"]
[Round "2"]
[White "jaskol95"]
[Black "mishanick"]
[Result "0-1"]
[WhiteElo "2602"]
[BlackElo "3009"]
[TimeControl "180+1"]
[EndTime "14:17:08 PST"]
[Termination "mishanick won by checkmate"]

1. d4 {[%clk 0:03:00.9]} 1... Nf6 {[%clk 0:02:56.5]} 2. Nc3 {[%clk 0:03:01.2]}
2... d5 {[%clk 0:02:56.5]} 3. Bf4 {[%clk 0:03:01.8]} 3... e6 {[%clk 0:02:57]} 4.
Nb5 {[%clk 0:03:01.6]} 4... Bb4+ {[%clk 0:02:57.2]} 5. c3 {[%clk 0:03:00.1]}
5... Ba5 {[%clk 0:02:57.8]} 6. a4 {[%clk 0:03:00.7]} 6... a6 {[%clk 0:02:58.1]}
7. b4 {[%clk 0:02:58.1]} 7... Bxb4 {[%clk 0:02:58.1]} 8. cxb4 {[%clk 0:02:54.2]}
8... axb5 {[%clk 0:02:58.8]} 9. axb5 {[%clk 0:02:54.9]} 9... Rxa1 {[%clk
0:02:59.1]} 10. Qxa1 {[%clk 0:02:55.2]} 10... Nh5 {[%clk 0:02:58.6]} 11. Bg3
{[%clk 0:02:43.5]} 11... Nxg3 {[%clk 0:02:52.8]} 12. hxg3 {[%clk 0:02:43.5]}
12... Qd6 {[%clk 0:02:53.2]} 13. Qc3 {[%clk 0:02:25.4]} 13... Bd7 {[%clk
0:02:53.3]} 14. e3 {[%clk 0:02:25]} 14... c6 {[%clk 0:02:53.9]} 15. bxc6 {[%clk
0:02:14.4]} 15... Nxc6 {[%clk 0:02:53.1]} 16. b5 {[%clk 0:02:02.8]} 16... Na7
{[%clk 0:02:52.6]} 17. Qa5 {[%clk 0:02:00.9]} 17... Nc8 {[%clk 0:02:14.3]} 18.
Nf3 {[%clk 0:02:00.3]} 18... Qb6 {[%clk 0:02:04.9]} 19. Qb4 {[%clk 0:01:22.1]}
19... Nd6 {[%clk 0:02:04.2]} 20. Ne5 {[%clk 0:01:21.9]} 20... f6 {[%clk
0:02:03.2]} 21. Ng6 {[%clk 0:01:09.3]} 21... Rg8 {[%clk 0:02:03.3]} 22. Rxh7
{[%clk 0:01:08.8]} 22... Kf7 {[%clk 0:01:58]} 23. Nf4 {[%clk 0:01:03]} 23...
Bxb5 {[%clk 0:01:53.9]} 24. Bxb5 {[%clk 0:00:32.8]} 24... Nxb5 {[%clk
0:01:54.8]} 25. Qb1 {[%clk 0:00:22.2]} 25... Qc6 {[%clk 0:01:23.2]} 26. Kf1
{[%clk 0:00:18.8]} 26... Nc7 {[%clk 0:01:19.1]} 27. Kg1 {[%clk 0:00:16.7]} 27...
b5 {[%clk 0:01:14]} 28. Qg6+ {[%clk 0:00:16.1]} 28... Kf8 {[%clk 0:01:14.3]} 29.
Nh5 {[%clk 0:00:14.6]} 29... Qe8 {[%clk 0:01:05.7]} 30. Qg4 {[%clk 0:00:04.8]}
30... Qf7 {[%clk 0:01:05.7]} 31. Qf4 {[%clk 0:00:04.8]} 31... Ne8 {[%clk
0:01:00.7]} 32. Qb8 {[%clk 0:00:04.3]} 32... Qg6 {[%clk 0:01:01.1]} 33. Rxg7
{[%clk 0:00:02]} 33... Rxg7 {[%clk 0:00:54.9]} 34. Nxg7 {[%clk 0:00:02.4]} 34...
Qb1+ {[%clk 0:00:54.6]} 35. Kh2 {[%clk 0:00:02.4]} 35... Qh7+ {[%clk 0:00:55.4]}
36. Kg1 {[%clk 0:00:02.3]} 36... Qxg7 {[%clk 0:00:56.1]} 37. Qxb5 {[%clk
0:00:02.2]} 37... Qe7 {[%clk 0:00:56.8]} 38. f3 {[%clk 0:00:02.3]} 38... Nd6
{[%clk 0:00:57.3]} 39. Qb6 {[%clk 0:00:01.6]} 39... Kg7 {[%clk 0:00:56.7]} 40.
g4 {[%clk 0:00:01.8]} 40... Nf7 {[%clk 0:00:57.2]} 41. Qb8 {[%clk 0:00:01.8]}
41... Qa3 {[%clk 0:00:54.8]} 42. Kf2 {[%clk 0:00:02]} 42... Qa2+ {[%clk
0:00:55.2]} 43. Kg3 {[%clk 0:00:02.4]} 43... Qd2 {[%clk 0:00:55.4]} 44. Qf4
{[%clk 0:00:01.8]} 44... Qe1+ {[%clk 0:00:55.7]} 45. Kh3 {[%clk 0:00:02.3]}
45... Qh1+ {[%clk 0:00:53.2]} 46. Kg3 {[%clk 0:00:02.7]} 46... Qh6 {[%clk
0:00:48.2]} 47. Qc7 {[%clk 0:00:02.3]} 47... Qxe3 {[%clk 0:00:47.9]} 48. Qd7
{[%clk 0:00:01.9]} 48... Qe2 {[%clk 0:00:44.4]} 49. Kh4 {[%clk 0:00:01.5]} 49...
Qxg2 {[%clk 0:00:43.8]} 50. f4 {[%clk 0:00:01.2]} 50... Qh2# {[%clk 0:00:44.2]}
0-1

[Event "Late-Titled-Tuesday-Blitz-February-20-2024"]
[Site "Chess.com"]
[Date "2024.02.20"]
[Round "2"]
[White "karinachess1"]
[Black "FredddieCroderg"]
[Result "1-0"]
[WhiteElo "2671"]
[BlackElo "2197"]
[TimeControl "180+1"]
[EndTime "14:17:09 PST"]
[Termination "karinachess1 won on time"]

1. d4 {[%clk 0:03:00.9]} 1... d5 {[%clk 0:02:59.2]} 2. c4 {[%clk 0:03:01.2]}
2... e6 {[%clk 0:02:58.2]} 3. Nc3 {[%clk 0:03:01.6]} 3... Nf6 {[%clk 0:02:56.7]}
4. cxd5 {[%clk 0:03:02]} 4... exd5 {[%clk 0:02:56.4]} 5. Bg5 {[%clk 0:03:02.1]}
5... Be7 {[%clk 0:02:56.4]} 6. e3 {[%clk 0:03:02.4]} 6... O-O {[%clk 0:02:56.3]}
7. Bd3 {[%clk 0:03:03.1]} 7... Re8 {[%clk 0:02:55]} 8. Nf3 {[%clk 0:03:00]} 8...
c6 {[%clk 0:02:51.8]} 9. O-O {[%clk 0:02:57.8]} 9... Nbd7 {[%clk 0:02:51.1]} 10.
Qc2 {[%clk 0:02:57.3]} 10... Nf8 {[%clk 0:02:50.7]} 11. h3 {[%clk 0:02:55.4]}
11... b5 {[%clk 0:02:48.8]} 12. Ne5 {[%clk 0:02:44.4]} 12... Bb7 {[%clk
0:02:43.8]} 13. a4 {[%clk 0:02:43.1]} 13... b4 {[%clk 0:02:42.8]} 14. Ne2 {[%clk
0:02:43.8]} 14... Rc8 {[%clk 0:02:40]} 15. a5 {[%clk 0:02:40.9]} 15... c5 {[%clk
0:02:38]} 16. Bf5 {[%clk 0:02:16.4]} 16... Ne6 {[%clk 0:02:36.4]} 17. Bxe6
{[%clk 0:01:59.1]} 17... fxe6 {[%clk 0:02:31.4]} 18. dxc5 {[%clk 0:01:58.3]}
18... Bxc5 {[%clk 0:02:24.4]} 19. Qd3 {[%clk 0:01:57]} 19... Qd6 {[%clk
0:02:19.6]} 20. Bxf6 {[%clk 0:01:50.3]} 20... gxf6 {[%clk 0:02:17.9]} 21. Ng4
{[%clk 0:01:51.2]} 21... Rf8 {[%clk 0:02:01.4]} 22. a6 {[%clk 0:01:28.5]} 22...
Bc6 {[%clk 0:01:59.6]} 23. Nd4 {[%clk 0:01:25.2]} 23... Be8 {[%clk 0:01:56.8]}
24. Rfc1 {[%clk 0:01:14.4]} 24... Bg6 {[%clk 0:01:55.2]} 25. Qb5 {[%clk
0:01:07]} 25... h5 {[%clk 0:01:34.7]} 26. Nh2 {[%clk 0:00:59.7]} 26... Bb6
{[%clk 0:01:31.8]} 27. Nhf3 {[%clk 0:00:46.1]} 27... e5 {[%clk 0:01:21.7]} 28.
Nc6 {[%clk 0:00:44.6]} 28... Kh7 {[%clk 0:01:01.8]} 29. Nxb4 {[%clk 0:00:38.5]}
29... Be4 {[%clk 0:00:51.7]} 30. Nd2 {[%clk 0:00:31.9]} 30... Rxc1+ {[%clk
0:00:46.2]} 31. Rxc1 {[%clk 0:00:32.8]} 31... Rg8 {[%clk 0:00:39.9]} 32. Nxe4
{[%clk 0:00:32.4]} 32... dxe4 {[%clk 0:00:39.9]} 33. Nd5 {[%clk 0:00:26.6]}
33... Qe6 {[%clk 0:00:32.4]} 34. Rc6 {[%clk 0:00:23.6]} 34... Qf7 {[%clk
0:00:08.1]} 35. Nxf6+ {[%clk 0:00:21.9]} 35... Kg7 {[%clk 0:00:08.7]} 36. Nxg8
{[%clk 0:00:18.4]} 36... Kxg8 {[%clk 0:00:09.3]} 37. Qxe5 {[%clk 0:00:16.9]}
37... Bc7 {[%clk 0:00:05.1]} 38. Rxc7 {[%clk 0:00:16.6]} 1-0

[Event "Late-Titled-Tuesday-Blitz-February-20-2024"]
[Site "Chess.com"]
[Date "2024.02.20"]
[Round "2"]
[White "GolfBeforeChess"]
[Black "Jaka_Brilej"]
[Result "0-1"]
[WhiteElo "2263"]
[BlackElo "2496"]
[TimeControl "180+1"]
[EndTime "14:17:10 PST"]
[Termination "Jaka_Brilej won by resignation"]

1. Nf3 {[%clk 0:03:00.9]} 1... d5 {[%clk 0:02:57]} 2. b3 {[%clk 0:03:00.8]} 2...
Bf5 {[%clk 0:02:55.5]} 3. Bb2 {[%clk 0:03:00.3]} 3... h6 {[%clk 0:02:56.1]} 4.
g3 {[%clk 0:02:59.5]} 4... Nf6 {[%clk 0:02:56.3]} 5. Bg2 {[%clk 0:03:00.1]} 5...
e6 {[%clk 0:02:55.8]} 6. d3 {[%clk 0:03:00.7]} 6... Bd6 {[%clk 0:02:48.4]} 7.
Nbd2 {[%clk 0:03:01.2]} 7... O-O {[%clk 0:02:46.5]} 8. O-O {[%clk 0:03:00.8]}
8... Bh7 {[%clk 0:02:40.3]} 9. c4 {[%clk 0:03:01]} 9... c6 {[%clk 0:02:40.3]}
10. Rc1 {[%clk 0:03:01]} 10... a5 {[%clk 0:02:37.2]} 11. a3 {[%clk 0:03:00.3]}
11... Qe7 {[%clk 0:02:32.5]} 12. a4 {[%clk 0:02:44.8]} 12... Na6 {[%clk
0:02:30.1]} 13. Ne5 {[%clk 0:02:42.1]} 13... Nb4 {[%clk 0:02:25.1]} 14. Ndf3
{[%clk 0:02:34]} 14... Nd7 {[%clk 0:02:14]} 15. Nxd7 {[%clk 0:02:32.7]} 15...
Qxd7 {[%clk 0:02:14.9]} 16. Qd2 {[%clk 0:02:28]} 16... b5 {[%clk 0:01:46.2]} 17.
cxb5 {[%clk 0:02:21.9]} 17... cxb5 {[%clk 0:01:47.1]} 18. axb5 {[%clk
0:02:21.4]} 18... Qxb5 {[%clk 0:01:47.8]} 19. Nd4 {[%clk 0:02:20.4]} 19... Qb6
{[%clk 0:01:39.5]} 20. Nf3 {[%clk 0:02:05.4]} 20... Rfc8 {[%clk 0:01:32.9]} 21.
Bd4 {[%clk 0:02:01.3]} 21... Qb7 {[%clk 0:01:27.2]} 22. Rxc8+ {[%clk 0:01:58.8]}
22... Rxc8 {[%clk 0:01:26.6]} 23. Rc1 {[%clk 0:01:58.8]} 23... f6 {[%clk
0:00:58.5]} 24. Rxc8+ {[%clk 0:01:53.9]} 24... Qxc8 {[%clk 0:00:59.4]} 25. Qc3
{[%clk 0:01:54.2]} 25... Qb7 {[%clk 0:00:53.9]} 26. Bh3 {[%clk 0:01:49.6]} 26...
Kf7 {[%clk 0:00:34.6]} 27. Bc5 {[%clk 0:01:49.5]} 27... Qc7 {[%clk 0:00:32.4]}
28. Bxb4 {[%clk 0:01:49.3]} 28... axb4 {[%clk 0:00:32.4]} 29. Qxc7+ {[%clk
0:01:48]} 29... Bxc7 {[%clk 0:00:33.3]} 30. Nd4 {[%clk 0:01:47.9]} 30... f5
{[%clk 0:00:31.1]} 31. Nc6 {[%clk 0:01:45.7]} 31... Bd6 {[%clk 0:00:28.9]} 32.
Kf1 {[%clk 0:01:36.2]} 32... Kf6 {[%clk 0:00:29]} 33. f4 {[%clk 0:01:33.5]}
33... Bg6 {[%clk 0:00:27.5]} 34. Ke1 {[%clk 0:01:26.6]} 34... Be8 {[%clk
0:00:27.9]} 35. Nd4 {[%clk 0:01:25.6]} 35... g5 {[%clk 0:00:23.5]} 36. e3 {[%clk
0:01:21.9]} 36... Bc5 {[%clk 0:00:19.8]} 37. Nc2 {[%clk 0:01:21.5]} 37... Bd6
{[%clk 0:00:20.1]} 38. Kd2 {[%clk 0:01:21.3]} 38... Bb5 {[%clk 0:00:20]} 39. Bg2
{[%clk 0:01:20.9]} 39... Bd7 {[%clk 0:00:20.1]} 40. Bf3 {[%clk 0:01:19.1]} 40...
Kg6 {[%clk 0:00:20.2]} 41. Bg2 {[%clk 0:01:17.1]} 41... Kf6 {[%clk 0:00:20.4]}
42. Ke2 {[%clk 0:01:17.3]} 42... Ke7 {[%clk 0:00:20.4]} 43. e4 {[%clk
0:01:14.6]} 43... dxe4 {[%clk 0:00:13.2]} 44. dxe4 {[%clk 0:01:14.5]} 44... fxe4
{[%clk 0:00:13.7]} 45. Bxe4 {[%clk 0:01:13.8]} 45... gxf4 {[%clk 0:00:12.2]} 46.
gxf4 {[%clk 0:01:13.7]} 46... Kf6 {[%clk 0:00:12.3]} 47. Kf3 {[%clk 0:01:13]}
47... Bb5 {[%clk 0:00:12]} 48. Nd4 {[%clk 0:01:12.3]} 48... Be8 {[%clk
0:00:10.7]} 49. Bc6 {[%clk 0:01:11.9]} 49... Bh5+ {[%clk 0:00:10.6]} 50. Ke3
{[%clk 0:01:11.3]} 50... Bc5 {[%clk 0:00:10.6]} 51. Kd3 {[%clk 0:01:06.1]} 51...
Bd6 {[%clk 0:00:07.6]} 52. Bd7 {[%clk 0:01:00.8]} 52... Bg6+ {[%clk 0:00:07.5]}
53. Ke3 {[%clk 0:00:59.7]} 53... Bc5 {[%clk 0:00:07.8]} 54. Bc8 {[%clk 0:00:54]}
54... e5 {[%clk 0:00:08]} 55. fxe5+ {[%clk 0:00:50.5]} 55... Kxe5 {[%clk
0:00:08.9]} 0-1

[Event "Late-Titled-Tuesday-Blitz-February-20-2024"]
[Site "Chess.com"]
[Date "2024.02.20"]
[Round "2"]
[White "otrov-11"]
[Black "vi_pranav"]
[Result "1/2-1/2"]
[WhiteElo "2612"]
[BlackElo "3004"]
[TimeControl "180+1"]
[EndTime "14:17:14 PST"]
[Termination "Game drawn by repetition"]

1. d4 {[%clk 0:03:00.9]} 1... Nf6 {[%clk 0:03:00]} 2. c4 {[%clk 0:03:01.6]} 2...
e6 {[%clk 0:03:00.4]} 3. g3 {[%clk 0:03:02.1]} 3... c5 {[%clk 0:02:59.6]} 4. d5
{[%clk 0:03:02.4]} 4... exd5 {[%clk 0:03:00.1]} 5. cxd5 {[%clk 0:03:03.3]} 5...
b5 {[%clk 0:03:01]} 6. Bg2 {[%clk 0:03:03.4]} 6... d6 {[%clk 0:02:58.2]} 7. Nf3
{[%clk 0:02:51.8]} 7... Be7 {[%clk 0:02:58.3]} 8. O-O {[%clk 0:02:52.4]} 8...
O-O {[%clk 0:02:59]} 9. Re1 {[%clk 0:02:47.5]} 9... Re8 {[%clk 0:02:52.9]} 10.
a4 {[%clk 0:02:41.5]} 10... b4 {[%clk 0:02:52.7]} 11. Nfd2 {[%clk 0:02:35.6]}
11... Ba6 {[%clk 0:02:51.4]} 12. b3 {[%clk 0:02:32.1]} 12... Nbd7 {[%clk
0:02:51.4]} 13. Bb2 {[%clk 0:02:32.2]} 13... Bf8 {[%clk 0:02:51.6]} 14. Nc4
{[%clk 0:02:23.3]} 14... Bxc4 {[%clk 0:02:34.5]} 15. bxc4 {[%clk 0:02:24.2]}
15... Ne5 {[%clk 0:02:35.1]} 16. Nd2 {[%clk 0:02:22.5]} 16... h5 {[%clk
0:02:35.5]} 17. h3 {[%clk 0:02:17.8]} 17... g6 {[%clk 0:02:28.1]} 18. Qc2 {[%clk
0:02:16.4]} 18... Bh6 {[%clk 0:02:24.5]} 19. f4 {[%clk 0:02:16.1]} 19... Ned7
{[%clk 0:02:19.2]} 20. e4 {[%clk 0:02:16.6]} 20... Nh7 {[%clk 0:01:19.6]} 21. e5
{[%clk 0:02:05.1]} 21... Bg7 {[%clk 0:01:15.4]} 22. Nf3 {[%clk 0:01:58.9]} 22...
Nhf8 {[%clk 0:01:10.4]} 23. e6 {[%clk 0:01:45.9]} 23... b3 {[%clk 0:00:42.9]}
24. exf7+ {[%clk 0:01:31.6]} 24... Kxf7 {[%clk 0:00:43]} 25. Qd2 {[%clk
0:01:23.8]} 25... Bxb2 {[%clk 0:00:24.6]} 26. Qxb2 {[%clk 0:01:24.7]} 26... Qf6
{[%clk 0:00:25.3]} 27. Qxb3 {[%clk 0:01:16.3]} 27... Rab8 {[%clk 0:00:25.2]} 28.
Qd3 {[%clk 0:01:12.3]} 28... Nh7 {[%clk 0:00:20.8]} 29. Rab1 {[%clk 0:01:01.3]}
29... Rxb1 {[%clk 0:00:10.2]} 30. Rxb1 {[%clk 0:01:00.7]} 30... Re7 {[%clk
0:00:10.6]} 31. a5 {[%clk 0:00:52.8]} 31... Kg7 {[%clk 0:00:09.4]} 32. h4 {[%clk
0:00:49.3]} 32... Ndf8 {[%clk 0:00:04.6]} 33. Bh3 {[%clk 0:00:46.5]} 33... Kh8
{[%clk 0:00:02.9]} 34. a6 {[%clk 0:00:36]} 34... Qg7 {[%clk 0:00:02.9]} 35. Kg2
{[%clk 0:00:20.7]} 35... Nf6 {[%clk 0:00:03.1]} 36. Ng5 {[%clk 0:00:20.3]} 36...
N6h7 {[%clk 0:00:03.3]} 37. Nf3 {[%clk 0:00:18.7]} 37... Nf6 {[%clk 0:00:03.5]}
38. Ng5 {[%clk 0:00:18.7]} 38... N6h7 {[%clk 0:00:04]} 39. Nf3 {[%clk
0:00:18.3]} 1/2-1/2

[Event "Late-Titled-Tuesday-Blitz-February-20-2024"]
[Site "Chess.com"]
[Date "2024.02.20"]
[Round "2"]
[White "TheKingDoctor"]
[Black "chegueps"]
[Result "0-1"]
[WhiteElo "2359"]
[BlackElo "2658"]
[TimeControl "180+1"]
[EndTime "14:17:14 PST"]
[Termination "chegueps won by resignation"]

1. e4 {[%clk 0:03:00.9]} 1... c6 {[%clk 0:02:56.7]} 2. d4 {[%clk 0:03:00.5]}
2... d5 {[%clk 0:02:57.4]} 3. Nc3 {[%clk 0:03:01.4]} 3... dxe4 {[%clk
0:02:57.7]} 4. Nxe4 {[%clk 0:03:02.3]} 4... Nf6 {[%clk 0:02:58.4]} 5. Nxf6+
{[%clk 0:03:02.5]} 5... exf6 {[%clk 0:02:59.3]} 6. c3 {[%clk 0:03:03.3]} 6...
Bd6 {[%clk 0:02:59.7]} 7. Bd3 {[%clk 0:03:04.2]} 7... O-O {[%clk 0:02:59.9]} 8.
Qh5 {[%clk 0:03:04.8]} 8... g6 {[%clk 0:02:56.2]} 9. Qh4 {[%clk 0:03:04.8]} 9...
Re8+ {[%clk 0:02:28.1]} 10. Ne2 {[%clk 0:03:01.5]} 10... f5 {[%clk 0:02:26.8]}
11. Bg5 {[%clk 0:03:00.7]} 11... Be7 {[%clk 0:02:27]} 12. Bxe7 {[%clk
0:02:58.9]} 12... Rxe7 {[%clk 0:02:27.5]} 13. O-O-O {[%clk 0:02:57.2]} 13... Be6
{[%clk 0:02:24.7]} 14. Kb1 {[%clk 0:02:54.8]} 14... Na6 {[%clk 0:02:16]} 15.
Rhe1 {[%clk 0:02:53.3]} 15... Qe8 {[%clk 0:01:46.1]} 16. Qf6 {[%clk 0:01:58.4]}
16... Nc7 {[%clk 0:01:42]} 17. c4 {[%clk 0:01:56.1]} 17... b5 {[%clk 0:01:41.8]}
18. b3 {[%clk 0:01:41.6]} 18... bxc4 {[%clk 0:01:28.7]} 19. bxc4 {[%clk
0:01:42.5]} 19... Rb8+ {[%clk 0:01:13.7]} 20. Ka1 {[%clk 0:01:41.6]} 20... Na6
{[%clk 0:01:14.6]} 21. Nc3 {[%clk 0:01:16.3]} 21... Nb4 {[%clk 0:01:09.8]} 22.
d5 {[%clk 0:01:15.1]} 22... cxd5 {[%clk 0:00:58.2]} 23. cxd5 {[%clk 0:01:14.3]}
23... Qd8 {[%clk 0:00:17.1]} 24. dxe6 {[%clk 0:00:59.6]} 24... Qxd3 {[%clk
0:00:16.7]} 25. Nb5 {[%clk 0:00:07.9]} 25... Nc2+ {[%clk 0:00:11.3]} 26. Kb2
{[%clk 0:00:07.8]} 26... Rxb5+ {[%clk 0:00:11.9]} 27. Kc1 {[%clk 0:00:08.3]}
27... Qa3+ {[%clk 0:00:05.7]} 28. Kd2 {[%clk 0:00:07.2]} 28... Qb4+ {[%clk
0:00:04.8]} 29. Kxc2 {[%clk 0:00:04.3]} 29... Rc5+ {[%clk 0:00:03.8]} 30. Kd3
{[%clk 0:00:04.3]} 30... Qc4+ {[%clk 0:00:03.4]} 31. Kd2 {[%clk 0:00:03.8]}
31... Rd5+ {[%clk 0:00:03.7]} 32. Ke3 {[%clk 0:00:03.5]} 32... Rxe6+ {[%clk
0:00:04.4]} 33. Qxe6 {[%clk 0:00:03.5]} 33... fxe6 {[%clk 0:00:05.3]} 34. Kf3
{[%clk 0:00:03.8]} 34... Rxd1 {[%clk 0:00:05.4]} 35. Rxd1 {[%clk 0:00:04.7]}
35... Qg4+ {[%clk 0:00:06]} 36. Ke3 {[%clk 0:00:04.5]} 36... Qxd1 {[%clk
0:00:06.9]} 0-1

[Event "Late-Titled-Tuesday-Blitz-February-20-2024"]
[Site "Chess.com"]
[Date "2024.02.20"]
[Round "2"]
[White "TheMagician"]
[Black "Cambek64"]
[Result "1-0"]
[WhiteElo "2207"]
[BlackElo "2451"]
[TimeControl "180+1"]
[EndTime "14:17:16 PST"]
[Termination "TheMagician won by resignation"]

1. d4 {[%clk 0:02:54.9]} 1... Nf6 {[%clk 0:03:00]} 2. Nf3 {[%clk 0:02:54.8]}
2... c5 {[%clk 0:03:00.1]} 3. e3 {[%clk 0:02:53.3]} 3... Qc7 {[%clk 0:02:58.4]}
4. c4 {[%clk 0:02:50]} 4... g6 {[%clk 0:02:56.9]} 5. Nc3 {[%clk 0:02:49.8]} 5...
Bg7 {[%clk 0:02:57.5]} 6. Bd2 {[%clk 0:02:43.1]} 6... O-O {[%clk 0:02:57.9]} 7.
Rc1 {[%clk 0:02:41]} 7... d6 {[%clk 0:02:57.4]} 8. b3 {[%clk 0:02:39.9]} 8... b6
{[%clk 0:02:56.5]} 9. Be2 {[%clk 0:02:36.7]} 9... Bb7 {[%clk 0:02:56.8]} 10. O-O
{[%clk 0:02:29.2]} 10... a6 {[%clk 0:02:57.2]} 11. Be1 {[%clk 0:02:20.5]} 11...
Nbd7 {[%clk 0:02:57.1]} 12. Nd2 {[%clk 0:02:19.7]} 12... e5 {[%clk 0:02:57.1]}
13. d5 {[%clk 0:02:18.7]} 13... Rae8 {[%clk 0:02:55.2]} 14. e4 {[%clk
0:02:18.5]} 14... Kh8 {[%clk 0:02:54.5]} 15. g4 {[%clk 0:02:12.7]} 15... Ng8
{[%clk 0:02:54.5]} 16. Kh1 {[%clk 0:02:11.4]} 16... Bh6 {[%clk 0:02:49.5]} 17.
Rg1 {[%clk 0:02:02.8]} 17... Bf4 {[%clk 0:02:49.3]} 18. Rg2 {[%clk 0:02:00.8]}
18... Qd8 {[%clk 0:02:47.6]} 19. Rc2 {[%clk 0:01:54]} 19... Qh4 {[%clk
0:02:37.7]} 20. Nf3 {[%clk 0:01:49.4]} 20... Qh6 {[%clk 0:02:35]} 21. Bd2 {[%clk
0:01:41.2]} 21... f5 {[%clk 0:02:32.3]} 22. exf5 {[%clk 0:01:34.3]} 22... gxf5
{[%clk 0:02:09.1]} 23. g5 {[%clk 0:01:33.4]} 23... Qg7 {[%clk 0:02:06.5]} 24.
Bxf4 {[%clk 0:01:32.4]} 24... exf4 {[%clk 0:02:06.5]} 25. Qd2 {[%clk 0:01:29.2]}
25... Re4 {[%clk 0:02:04.7]} 26. Bd3 {[%clk 0:01:13]} 26... Qe7 {[%clk
0:02:02.7]} 27. g6 {[%clk 0:01:04.5]} 27... hxg6 {[%clk 0:01:53.4]} 28. Ne2
{[%clk 0:01:00]} 28... Kg7 {[%clk 0:01:00.3]} 29. Nxf4 {[%clk 0:00:40.1]} 29...
Rxf4 {[%clk 0:00:58.4]} 30. Qxf4 {[%clk 0:00:38.8]} 30... Nh6 {[%clk 0:00:57.4]}
31. Re2 {[%clk 0:00:33.9]} 31... Qf6 {[%clk 0:00:56.8]} 32. Re6 {[%clk
0:00:31.8]} 32... Qxe6 {[%clk 0:00:34.2]} 33. dxe6 {[%clk 0:00:30.4]} 33... Nf6
{[%clk 0:00:29.4]} 34. Bxf5 {[%clk 0:00:15.2]} 34... Nxf5 {[%clk 0:00:17.6]} 35.
Qxf5 {[%clk 0:00:14.5]} 35... Be4 {[%clk 0:00:17.9]} 36. Rxg6+ {[%clk
0:00:12.6]} 36... Kh7 {[%clk 0:00:18.4]} 37. Rxf6+ {[%clk 0:00:10.7]} 37... Bxf5
{[%clk 0:00:17.6]} 38. Rxf8 {[%clk 0:00:10.6]} 38... Be4 {[%clk 0:00:17.8]} 39.
e7 {[%clk 0:00:09.4]} 1-0

[Event "Late-Titled-Tuesday-Blitz-February-20-2024"]
[Site "Chess.com"]
[Date "2024.02.20"]
[Round "2"]
[White "Vasily85"]
[Black "PawnEatingZombie"]
[Result "1-0"]
[WhiteElo "2473"]
[BlackElo "2204"]
[TimeControl "180+1"]
[EndTime "14:17:17 PST"]
[Termination "Vasily85 won by resignation"]

1. e4 {[%clk 0:03:00]} 1... d6 {[%clk 0:02:58.9]} 2. d4 {[%clk 0:02:57.9]} 2...
Nf6 {[%clk 0:02:58.9]} 3. Nc3 {[%clk 0:02:57.5]} 3... e5 {[%clk 0:02:59.3]} 4.
Nge2 {[%clk 0:02:53.8]} 4... Nbd7 {[%clk 0:02:58.5]} 5. g3 {[%clk 0:02:52.9]}
5... c6 {[%clk 0:02:56.5]} 6. Bg2 {[%clk 0:02:53]} 6... Be7 {[%clk 0:02:55.1]}
7. O-O {[%clk 0:02:53]} 7... O-O {[%clk 0:02:54.6]} 8. h3 {[%clk 0:02:53.3]}
8... b5 {[%clk 0:02:53.6]} 9. a3 {[%clk 0:02:52.7]} 9... Bb7 {[%clk 0:02:53.4]}
10. Be3 {[%clk 0:02:52.4]} 10... a5 {[%clk 0:02:53]} 11. f4 {[%clk 0:01:54.3]}
11... Qc7 {[%clk 0:02:43.6]} 12. g4 {[%clk 0:01:28.9]} 12... Nb6 {[%clk
0:02:39]} 13. b3 {[%clk 0:01:19]} 13... b4 {[%clk 0:02:38]} 14. Nb1 {[%clk
0:01:19]} 14... Ba6 {[%clk 0:02:34]} 15. Rf2 {[%clk 0:01:06.5]} 15... Rfd8
{[%clk 0:02:27.5]} 16. g5 {[%clk 0:01:04.2]} 16... Nfd7 {[%clk 0:02:27]} 17. f5
{[%clk 0:01:03.7]} 17... Bf8 {[%clk 0:02:26.9]} 18. Nd2 {[%clk 0:00:59.9]} 18...
d5 {[%clk 0:02:15.8]} 19. Ng3 {[%clk 0:00:51.7]} 19... Bb7 {[%clk 0:02:09.7]}
20. g6 {[%clk 0:00:50.3]} 20... Nf6 {[%clk 0:01:36.7]} 21. dxe5 {[%clk
0:00:40.1]} 21... Nxe4 {[%clk 0:01:28.8]} 22. gxf7+ {[%clk 0:00:31.5]} 22...
Kxf7 {[%clk 0:01:27.1]} 23. Qh5+ {[%clk 0:00:22.9]} 23... Kg8 {[%clk 0:01:26.9]}
24. Ndxe4 {[%clk 0:00:23.5]} 24... dxe4 {[%clk 0:01:26.7]} 25. Nxe4 {[%clk
0:00:24.1]} 25... Nd5 {[%clk 0:01:19.9]} 26. Ng5 {[%clk 0:00:18]} 26... h6
{[%clk 0:01:15.2]} 27. Ne6 {[%clk 0:00:17.9]} 27... Qxe5 {[%clk 0:01:15.2]} 28.
Bd4 {[%clk 0:00:18.6]} 28... Nf6 {[%clk 0:00:34.8]} 29. Bxe5 {[%clk 0:00:12.5]}
29... Nxh5 {[%clk 0:00:34.4]} 30. Nxd8 {[%clk 0:00:13.2]} 30... Rxd8 {[%clk
0:00:33.8]} 31. axb4 {[%clk 0:00:13.9]} 31... Bxb4 {[%clk 0:00:32.1]} 32. Kh2
{[%clk 0:00:12.2]} 32... Bc8 {[%clk 0:00:26.7]} 33. c3 {[%clk 0:00:08.7]} 33...
Bc5 {[%clk 0:00:26]} 34. Rf3 {[%clk 0:00:08.2]} 34... Rd2 {[%clk 0:00:23.9]} 35.
Raf1 {[%clk 0:00:07.1]} 35... Nf6 {[%clk 0:00:21.7]} 36. Bxf6 {[%clk 0:00:06.3]}
36... gxf6 {[%clk 0:00:21.3]} 37. Rg3+ {[%clk 0:00:06.7]} 37... Kf7 {[%clk
0:00:20.7]} 38. Kh1 {[%clk 0:00:06.4]} 38... Ba6 {[%clk 0:00:19.4]} 39. Re1
{[%clk 0:00:05.7]} 39... Rb2 {[%clk 0:00:17.9]} 40. Bxc6 {[%clk 0:00:04.9]}
40... Rxb3 {[%clk 0:00:16.7]} 41. Bd5+ {[%clk 0:00:05.2]} 1-0